bitfinex/quotes_BTCUSD_20250709
["timestamp","ask_amount","ask_price","bid_price","bid_amount"]
[1752087863365,0.9942839,109660.0,109650.0,0.09551911]
[1752087863562,0.9942839,109660.0,109650.0,0.09665842]
[1752087865070,0.60117059,109660.0,109650.0,0.28817688]
[1752087865275,0.90673647,109660.0,109650.0,0.28817688]
[1752087866386,0.90673647,109660.0,109650.0,0.10577834]
[1752087866733,0.62709647,109660.0,109650.0,0.10577834]
[1752087866926,0.76693647,109660.0,109650.0,0.10577834]
[1752087867121,0.027404,109660.0,109650.0,0.31767565]
[1752087867327,0.53020445,109680.0,109660.0,0.02735652]
[1752087867548,0.53020445,109680.0,109670.0,0.20274162]
[1752087867549,0.37641102,109680.0,109670.0,0.20274162]
[1752087867757,0.83093574,109680.0,109670.0,0.25990316]
[1752087868179,0.3834582,109680.0,109670.0,0.26902117]
[1752087868382,0.3834582,109680.0,109670.0,0.2944391]
[1752087868383,0.34042434,109680.0,109670.0,0.2944391]
[1752087868887,0.36782434,109680.0,109670.0,0.2944391]
[1752087869523,0.37282434,109680.0,109670.0,0.2944391]
[1752087869693,0.68450906,109680.0,109670.0,0.27620316]
[1752087869900,0.67339188,109680.0,109670.0,0.27620316]
[1752087870091,0.53655188,109680.0,109670.0,0.27620316]
[1752087870248,0.75162588,109680.0,109670.0,0.07560154]
[1752087870448,0.75162588,109680.0,109670.0,0.05930154]
[1752087870697,0.75362588,109680.0,109670.0,0.24166681]
[1752087871556,0.75569588,109680.0,109670.0,0.05930154]
[1752087871757,0.75569588,109680.0,109670.0,0.05928976]
[1752087873708,0.44101116,109680.0,109670.0,0.05928976]
[1752087873942,0.75569588,109680.0,109670.0,0.05928976]
[1752087874538,0.75569588,109680.0,109670.0,0.04308976]
[1752087880655,0.44101116,109680.0,109670.0,0.04308976]
[1752087880838,0.75569588,109680.0,109670.0,0.04308976]
[1752087882722,0.75569588,109680.0,109670.0,0.0430752]
[1752087882923,0.75569588,109680.0,109670.0,0.22544047]
[1752087883048,0.55885507,109680.0,109670.0,0.25867657]
[1752087883263,0.69658507,109680.0,109670.0,0.2842945]
[1752087883467,0.55678507,109680.0,109670.0,0.4273145]
[1752087883699,0.05063427,109680.0,109670.0,0.43643218]
[1752087883905,0.05063427,109680.0,109670.0,0.53196385]
[1752087883906,0.03235095,109680.0,109670.0,0.53196385]
[1752087884109,0.02323377,109680.0,109670.0,0.52339436]
[1752087884641,0.005,109680.0,109670.0,0.52339436]
[1752087884846,0.01411676,109680.0,109670.0,0.61982184]
[1752087885793,0.01211676,109680.0,109670.0,0.61982184]
[1752087885994,0.02835079,109680.0,109670.0,0.61982184]
[1752087886328,0.01011676,109680.0,109670.0,0.61982184]
[1752087886529,0.01923369,109680.0,109670.0,0.62887007]
[1752087886845,0.02023361,109680.0,109670.0,0.57428983]
[1752087888330,0.02023361,109680.0,109670.0,0.62879544]
[1752087889445,0.002,109680.0,109670.0,0.62879544]
[1752087889648,0.01111685,109680.0,109670.0,0.62879544]
[1752087890271,0.02023386,109680.0,109670.0,0.5554783]
[1752087891516,0.01111685,109680.0,109670.0,0.5554783]
[1752087891739,0.02023378,109680.0,109670.0,0.5554783]
[1752087892240,0.02935088,109680.0,109670.0,0.5554783]
[1752087893065,0.02023378,109680.0,109670.0,0.5554783]
[1752087893564,0.60047065,109680.0,109670.0,0.33913353]
[1752087893688,0.40900466,109680.0,109670.0,0.48801121]
[1752087894045,0.41812192,109680.0,109670.0,0.49731719]
[1752087894272,0.609588,109680.0,109670.0,0.49731719]
[1752087894452,0.609588,109680.0,109670.0,0.49731735]
[1752087894660,0.2766695,109680.0,109670.0,0.48801137]
[1752087894853,0.59135422,109680.0,109670.0,0.48801137]
[1752087895836,0.59135422,109680.0,109670.0,0.35736913]
[1752087896031,0.40900557,109680.0,109670.0,0.50624681]
[1752087896236,0.39988814,109680.0,109670.0,0.4517412]
[1752087896672,0.40900491,109680.0,109670.0,0.4517412]
[1752087896890,0.39988773,109680.0,109670.0,0.4517412]
[1752087897284,0.08520292,109680.0,109670.0,0.4517412]
[1752087897498,0.02230386,109680.0,109670.0,0.4517412]
[1752087897853,0.03142104,109680.0,109670.0,0.4677412]
[1752087898206,0.02230386,109680.0,109670.0,0.4677412]
[1752087898406,0.02230386,109680.0,109670.0,0.47694661]
[1752087898606,0.03142096,109680.0,109670.0,0.47694661]
[1752087899380,0.04053822,109680.0,109670.0,0.47694661]
[1752087899585,0.03142096,109680.0,109670.0,0.47694661]
[1752087900415,0.04053814,109680.0,109670.0,0.47694661]
[1752087901460,0.08469782,109680.0,109670.0,0.47694661]
[1752087901620,0.07558064,109680.0,109670.0,0.47694661]
[1752087901820,0.06646354,109680.0,109670.0,0.47694661]
[1752087902774,0.07558072,109680.0,109670.0,0.47694661]
[1752087903514,0.06646354,109680.0,109670.0,0.47694661]
[1752087903895,0.06439354,109680.0,109670.0,0.47694661]
[1752087904802,0.07351072,109680.0,109670.0,0.47694661]
[1752087905411,0.38819544,109680.0,109670.0,0.47694661]
[1752087905660,0.37907826,109680.0,109670.0,0.47694661]
[1752087906152,0.38819536,109680.0,109670.0,0.47694661]
[1752087906970,0.38805617,109680.0,109670.0,0.47694661]
[1752087907175,0.39717343,109680.0,109670.0,0.4677412]
[1752087907587,0.38805617,109680.0,109670.0,0.4517412]
[1752087907797,0.38805617,109680.0,109670.0,0.46080856]
[1752087909233,0.39717335,109680.0,109670.0,0.46080856]
[1752087909633,0.38805617,109680.0,109670.0,0.46080856]
[1752087909836,0.02935096,109680.0,109670.0,0.46080856]
[1752087910153,0.33477939,109680.0,109670.0,0.46080856]
[1752087911824,0.02023386,109680.0,109670.0,0.46080856]
[1752087912026,0.33477939,109680.0,109670.0,0.46080856]
[1752087912167,0.01111685,109680.0,109670.0,0.46080856]
[1752087912353,0.01111685,109680.0,109670.0,0.5505457]
[1752087912560,0.002,109680.0,109670.0,0.5505457]
[1752087912756,0.002,109680.0,109670.0,0.5689057]
[1752087913361,0.002,109680.0,109670.0,0.48701907]
[1752087913726,0.02023361,109680.0,109670.0,0.48701907]
[1752087914026,0.02935071,109680.0,109670.0,0.39534193]
[1752087914250,0.05254933,109680.0,109670.0,0.39534193]
[1752087914410,0.36709486,109680.0,109670.0,0.39534193]
[1752087914790,0.36709486,109680.0,109670.0,0.36987457]
[1752087914989,0.37830204,109680.0,109670.0,0.36987457]
[1752087915435,0.05463933,109680.0,109670.0,0.36987457]
[1752087915639,0.37830212,109680.0,109670.0,0.36987457]
[1752087916005,0.86608003,109680.0,109670.0,0.41315818]
[1752087916171,0.23698897,109680.0,109670.0,0.43139403]
[1752087916377,0.86608036,109680.0,109670.0,0.42227619]
[1752087916721,0.86608036,109680.0,109670.0,0.43139412]
[1752087916931,0.86608036,109680.0,109670.0,0.44051188]
[1752087917141,0.84288174,109680.0,109670.0,0.44051188]
[1752087917356,0.86606448,109680.0,109670.0,0.41315818]
[1752087917580,0.86606448,109680.0,109670.0,0.43139428]
[1752087917718,0.85694714,109680.0,109670.0,0.41315818]
[1752087917921,0.31017558,109680.0,109670.0,0.42227619]
[1752087918118,0.84782971,109680.0,109670.0,0.42227619]
[1752087919114,0.84782971,109680.0,109670.0,0.08191465]
[1752087919317,1.07902664,109680.0,109670.0,0.13651633]
[1752087919547,1.07902664,109680.0,109670.0,0.05460168]
[1752087919858,1.07902664,109680.0,109670.0,0.09556036]
[1752087920061,1.17046357,109680.0,109670.0,0.04095868]
[1752087920263,1.19786457,109680.0,109670.0,0.04095868]
[1752087922410,1.5124101,109680.0,109670.0,0.04095868]
[1752087922578,0.22507336,109670.0,109660.0,0.23536036]
[1752087922936,0.631187,109670.0,109660.0,0.23533764]
[1752087923113,0.72262393,109670.0,109660.0,0.23533764]
[1752087923321,0.72262393,109670.0,109660.0,0.09553764]
[1752087923702,0.72262393,109670.0,109660.0,0.09653764]
[1752087926227,0.72262393,109670.0,109660.0,0.04193596]
[1752087929304,0.72262393,109670.0,109660.0,0.001]
[1752087930013,0.72262393,109670.0,109660.0,0.04193596]
[1752087930208,0.40794722,109670.0,109660.0,0.001]
[1752087930412,0.72262393,109670.0,109660.0,0.001]
[1752087930671,0.40794722,109670.0,109660.0,0.001]
[1752087931110,0.72262393,109670.0,109660.0,0.001]
[1752087936733,0.1843419,109660.0,109650.0,0.31499143]
[1752087936937,0.72848438,109660.0,109650.0,0.31499143]
[1752087937340,0.7376033,109660.0,109650.0,0.29675192]
[1752087937545,0.7376033,109660.0,109650.0,0.30587184]
[1752087937893,0.7376033,109660.0,109650.0,0.3149916]
[1752087938082,0.7376033,109660.0,109650.0,0.3159916]
[1752087938290,0.7376033,109660.0,109650.0,0.30687184]
[1752087938521,0.72848438,109660.0,109650.0,0.09663833]
[1752087938951,0.72848438,109660.0,109650.0,0.04203665]
[1752087939641,0.85212131,109660.0,109650.0,0.04203665]
[1752087940252,0.5374446,109660.0,109650.0,0.04203665]
[1752087940458,0.85212131,109660.0,109650.0,0.04203665]
[1752087940635,0.85212131,109660.0,109650.0,0.04208188]
[1752087941393,0.5374446,109660.0,109650.0,0.04208188]
[1752087941601,0.85212131,109660.0,109650.0,0.04208188]
[1752087942674,0.86120585,109660.0,109650.0,0.04208188]
[1752087943232,0.86120585,109660.0,109650.0,0.0591434]
[1752087944190,0.86120585,109660.0,109650.0,0.05915635]
[1752087944389,0.86120585,109660.0,109650.0,0.05916089]
[1752087944863,1.17600184,109660.0,109650.0,0.05916089]
[1752087947278,1.1669173,109660.0,109650.0,0.05916089]
[1752087948069,1.1669173,109660.0,109650.0,0.05916773]
[1752087951985,1.17626208,109660.0,109650.0,0.05916773]
[1752087952294,1.17626208,109660.0,109650.0,0.05922766]
[1752087955698,1.17626208,109660.0,109650.0,0.05924508]
[1752087957043,1.17626208,109660.0,109650.0,0.05924673]
[1752087957442,1.17626208,109660.0,109650.0,0.05925789]
[1752087957831,0.54678938,109660.0,109650.0,0.05925789]
[1752087958030,1.17626208,109660.0,109650.0,0.05925789]
[1752087958237,0.54678938,109660.0,109650.0,0.05925789]
[1752087958480,1.17626208,109660.0,109650.0,0.05925789]
[1752087959055,1.15966208,109660.0,109650.0,0.05925789]
[1752087959253,1.1503173,109660.0,109650.0,0.05925789]
[1752087959460,1.1347173,109660.0,109650.0,0.05925789]
[1752087959917,1.04514153,109660.0,109650.0,0.05925789]
[1752087961286,1.04512153,109660.0,109650.0,0.04216592]
[1752087961487,0.41564883,109660.0,109650.0,0.05926259]
[1752087961698,1.04512153,109660.0,109650.0,0.05926259]
[1752087962466,1.07612153,109660.0,109650.0,0.05926259]
[1752087962668,1.16755846,109660.0,109650.0,0.05926259]
[1752087963085,1.16755846,109660.0,109650.0,0.01823598]
[1752087963285,1.16755846,109660.0,109650.0,0.05926915]
[1752087963488,1.15155846,109660.0,109650.0,0.05926915]
[1752087967202,1.15155846,109660.0,109650.0,0.0592788]
[1752087969243,1.16745846,109660.0,109650.0,0.05930411]
[1752087969676,1.02769846,109660.0,109650.0,0.05930411]
[1752087969848,1.16749846,109660.0,109650.0,0.05930411]
[1752087970450,1.16749846,109660.0,109650.0,0.01824563]
[1752087972440,1.19490346,109660.0,109650.0,0.01824563]
[1752087974053,1.84963981,109660.0,109650.0,0.01824563]
[1752087974872,1.53490346,109660.0,109650.0,0.00113931]
[1752087975099,1.84963981,109660.0,109650.0,0.00113931]
[1752087975825,1.85463981,109660.0,109650.0,0.00113931]
[1752087976067,1.53990346,109660.0,109650.0,0.00113931]
[1752087976297,1.53990346,109660.0,109650.0,0.00013931]
[1752087976732,1.85463981,109660.0,109650.0,0.00013931]
[1752087977703,1.85763981,109660.0,109650.0,0.00013931]
[1752087979254,0.2006561,109640.0,109630.0,0.07331714]
[1752087979391,0.9651527,109640.0,109630.0,0.07378182]
[1752087980227,0.9651527,109640.0,109630.0,0.00046468]
[1752087980424,1.1370527,109640.0,109630.0,0.00046468]
[1752087980871,1.1644637,109640.0,109630.0,0.00046468]
[1752087981058,1.1654637,109640.0,109630.0,0.00046468]
[1752087981459,1.1333637,109640.0,109630.0,0.00046468]
[1752087981665,0.46337403,109640.0,109630.0,0.00046468]
[1752087981868,0.77811038,109640.0,109630.0,0.20113942]
[1752087982066,0.14820953,109640.0,109630.0,0.24633051]
[1752087982266,0.14820895,109640.0,109630.0,0.25545159]
[1752087982422,0.01112009,109640.0,109630.0,0.25545159]
[1752087982627,0.01112009,109640.0,109630.0,0.65804593]
[1752087982876,0.002,109640.0,109630.0,0.65804593]
[1752087983860,0.002,109640.0,109630.0,0.73996058]
[1752087985307,0.002,109640.0,109630.0,1.24609724]
[1752087985507,0.002,109640.0,109630.0,0.93136089]
[1752087985950,0.001,109640.0,109630.0,0.93136089]
[1752087986412,0.001,109640.0,109630.0,0.93336089]
[1752087986802,0.35121155,109660.0,109650.0,0.24444731]
[1752087986957,0.12045692,109660.0,109650.0,0.52452731]
[1752087987162,0.11133791,109660.0,109650.0,0.52452731]
[1752087987360,0.11133791,109660.0,109650.0,0.52770731]
[1752087987552,0.12045683,109660.0,109650.0,0.52770731]
[1752087987915,0.31195774,109660.0,109650.0,0.52452731]
[1752087988039,0.12045725,109660.0,109650.0,0.52452739]
[1752087988401,0.29472014,109660.0,109650.0,0.51540797]
[1752087988600,0.29572014,109660.0,109650.0,0.49920797]
[1752087988803,0.29572014,109660.0,109650.0,0.50832748]
[1752087989014,0.62861138,109660.0,109650.0,0.5174469]
[1752087989230,0.61949262,109660.0,109650.0,0.5174469]
[1752087989789,0.43711072,109660.0,109650.0,0.5174469]
[1752087989994,0.40975345,109660.0,109650.0,0.54246624]
[1752087990221,0.09510031,109660.0,109650.0,0.54246624]
[1752087991027,0.09510006,109660.0,109650.0,0.54246624]
[1752087991237,0.01111834,109660.0,109650.0,0.54564624]
[1752087991414,0.02935544,109660.0,109650.0,0.54564624]
[1752087991557,0.02023677,109660.0,109650.0,0.54564624]
[1752087992135,0.02935536,109660.0,109650.0,0.54564624]
[1752087993293,0.02023677,109660.0,109650.0,0.54564624]
[1752087994236,0.02935536,109660.0,109650.0,0.54564624]
[1752087995073,0.02023677,109660.0,109650.0,0.54564624]
[1752087995268,0.02935536,109660.0,109650.0,0.54564624]
[1752087995469,0.01111834,109660.0,109650.0,0.54564624]
[1752087995743,0.03435106,109660.0,109650.0,0.86029938]
[1752087995883,0.002,109660.0,109650.0,0.86029938]
[1752087996264,0.002,109660.0,109650.0,0.54564624]
[1752087997874,0.002,109660.0,109650.0,0.86029938]
[1752087998079,0.002,109660.0,109650.0,0.86940686]
[1752087998251,0.01111843,109660.0,109650.0,0.86940686]
[1752087998457,0.01111834,109660.0,109650.0,0.55475372]
[1752087998756,0.02023685,109660.0,109650.0,0.55475372]
[1752087998907,0.03915418,109660.0,109650.0,0.55475372]
[1752087999103,0.03003567,109660.0,109650.0,0.55475372]
[1752087999319,0.03915418,109660.0,109650.0,0.55475372]
[1752087999518,0.03003567,109660.0,109650.0,0.55475372]
[1752087999955,0.03915418,109660.0,109650.0,0.55475372]
[1752088001410,0.02023685,109660.0,109650.0,0.55475372]
[1752088002216,0.02935552,109660.0,109650.0,0.55475372]
[1752088002407,0.02023685,109660.0,109650.0,0.55475372]
[1752088002945,0.01111834,109660.0,109650.0,0.86940686]
[1752088004821,0.02023685,109660.0,109650.0,0.86940686]
[1752088005180,0.02023685,109660.0,109650.0,0.55475372]
[1752088005612,0.01111834,109660.0,109650.0,0.55475372]
[1752088008185,0.01111834,109660.0,109650.0,0.86940686]
[1752088008894,0.01111834,109660.0,109650.0,0.86934193]
[1752088009357,0.002,109660.0,109650.0,0.86934193]
[1752088009699,0.002,109660.0,109650.0,0.98431136]
[1752088009968,0.002,109660.0,109650.0,0.97531971]
[1752088010173,0.002,109660.0,109650.0,1.15719774]
[1752088010653,0.001,109660.0,109650.0,1.15719774]
[1752088010862,0.001,109660.0,109650.0,1.47178595]
[1752088011071,0.001,109660.0,109650.0,1.47158707]
[1752088011734,0.001,109660.0,109650.0,0.83860953]
[1752088011970,0.001,109660.0,109650.0,1.46758707]
[1752088012184,0.002,109660.0,109650.0,1.46758707]
[1752088012608,0.001,109660.0,109650.0,1.46758707]
[1752088012836,0.03853755,109680.0,109670.0,0.20971906]
[1752088013054,0.02030344,109680.0,109670.0,0.49156906]
[1752088013266,0.23405537,109690.0,109680.0,0.19146591]
[1752088013522,0.3254923,109690.0,109680.0,0.20058292]
[1752088013790,0.3254923,109690.0,109680.0,0.20970019]
[1752088014033,0.05172245,109690.0,109680.0,0.21881704]
[1752088014271,0.24321748,109690.0,109680.0,0.20970019]
[1752088014470,0.24321748,109690.0,109680.0,0.2188172]
[1752088014821,0.24621748,109690.0,109680.0,0.2188172]
[1752088015024,0.24621748,109690.0,109680.0,0.20058309]
[1752088015226,0.15532239,109690.0,109680.0,0.2097001]
[1752088015427,0.33765441,109690.0,109680.0,0.20058309]
[1752088015855,0.33965441,109690.0,109680.0,0.20058309]
[1752088016055,0.33665441,109690.0,109680.0,0.2188172]
[1752088016291,0.33465441,109690.0,109680.0,0.20058309]
[1752088016482,0.33565441,109690.0,109680.0,0.20058309]
[1752088016695,0.33665441,109690.0,109680.0,0.20058309]
[1752088016905,0.64202708,109690.0,109680.0,0.19146591]
[1752088017111,0.31842196,109690.0,109680.0,0.19146599]
[1752088017541,0.30930536,109690.0,109680.0,0.18234865]
[1752088017731,0.30930536,109690.0,109680.0,0.19146608]
[1752088017944,0.30930536,109690.0,109680.0,0.18234865]
[1752088018315,0.30930536,109690.0,109680.0,0.19146599]
[1752088019688,0.30930536,109690.0,109680.0,0.20058325]
[1752088019819,0.21786843,109690.0,109680.0,0.20970043]
[1752088020230,0.03553641,109690.0,109680.0,0.20970043]
[1752088020429,0.06288496,109690.0,109680.0,0.22793454]
[1752088020631,0.24521698,109690.0,109680.0,0.21881753]
[1752088020831,0.07200131,109690.0,109680.0,0.22793446]
[1752088021446,0.11689966,109690.0,109680.0,0.22793446]
[1752088021653,0.08549966,109690.0,109680.0,0.23002446]
[1752088021851,0.04060122,109690.0,109680.0,0.23002397]
[1752088022052,0.02236836,109690.0,109680.0,0.54451274]
[1752088022299,0.03148462,109690.0,109680.0,0.54451274]
[1752088022476,0.03148454,109690.0,109680.0,0.23002397]
[1752088022921,0.02225836,109690.0,109680.0,0.23002397]
[1752088023126,0.03137462,109690.0,109680.0,0.23002397]
[1752088023344,0.01314242,109690.0,109680.0,0.23002397]
[1752088023502,0.10288261,109690.0,109680.0,0.22090712]
[1752088023715,0.29159862,109690.0,109680.0,0.18234865]
[1752088023937,0.29748244,109690.0,109680.0,0.19146599]
[1752088024302,0.29748244,109690.0,109680.0,0.20058325]
[1752088024490,0.11515042,109690.0,109680.0,0.21881736]
[1752088024902,0.11515042,109690.0,109680.0,0.22793429]
[1752088025119,0.11515042,109690.0,109680.0,0.21881736]
[1752088025780,0.29748244,109690.0,109680.0,0.20970035]
[1752088025952,0.12426702,109690.0,109680.0,0.21881736]
[1752088026103,0.11515042,109690.0,109680.0,0.21881736]
[1752088026322,0.11515042,109690.0,109680.0,0.20970035]
[1752088026521,0.11515042,109690.0,109680.0,0.21881736]
[1752088026774,0.12426635,109690.0,109680.0,0.21881736]
[1752088026936,0.13338295,109690.0,109680.0,0.21881736]
[1752088027134,0.13338295,109690.0,109680.0,0.20970035]
[1752088027551,0.13338295,109690.0,109680.0,0.20058325]
[1752088027749,0.13338295,109690.0,109680.0,0.20970035]
[1752088028012,0.12426635,109690.0,109680.0,0.21881736]
[1752088028200,0.12426635,109690.0,109680.0,0.20970035]
[1752088028423,0.13338295,109690.0,109680.0,0.21881736]
[1752088028588,0.12426635,109690.0,109680.0,0.22793429]
[1752088028999,0.12426635,109690.0,109680.0,0.21881736]
[1752088029197,0.12426635,109690.0,109680.0,0.22793429]
[1752088029405,0.30659837,109690.0,109680.0,0.21881736]
[1752088030144,0.31571497,109690.0,109680.0,0.21881736]
[1752088030347,0.13338295,109690.0,109680.0,0.22793429]
[1752088030605,0.13338286,109690.0,109680.0,0.22793429]
[1752088030761,0.14249946,109690.0,109680.0,0.21881736]
[1752088030968,0.45698147,109690.0,109680.0,0.21881736]
[1752088031164,0.63931349,109690.0,109680.0,0.20970035]
[1752088031569,0.63931349,109690.0,109680.0,0.22090736]
[1752088031824,0.63931349,109690.0,109680.0,0.20970035]
[1752088032310,0.63019689,109690.0,109680.0,0.20970035]
[1752088032522,0.13338286,109690.0,109680.0,0.21881736]
[1752088032729,0.44786487,109690.0,109680.0,0.21881736]
[1752088032946,0.44786487,109690.0,109680.0,0.22793429]
[1752088033166,0.63931349,109690.0,109680.0,0.20970035]
[1752088033401,0.30659837,109690.0,109680.0,0.20058325]
[1752088033626,0.63019689,109690.0,109680.0,0.21881753]
[1752088034284,0.43874836,109690.0,109680.0,0.22793454]
[1752088034510,0.44786487,109690.0,109680.0,0.21881753]
[1752088034740,0.43874836,109690.0,109680.0,0.22793454]
[1752088034960,0.11514992,109690.0,109680.0,0.22793413]
[1752088035217,0.36526069,109690.0,109680.0,0.22793413]
[1752088035436,0.02234868,109690.0,109680.0,0.53329888]
[1752088035661,0.02234868,109690.0,109680.0,0.54241573]
[1752088035880,0.02234868,109690.0,109680.0,0.53329888]
[1752088036100,0.02234868,109690.0,109680.0,0.53533888]
[1752088036309,0.03146511,109690.0,109680.0,0.53533888]
[1752088036524,0.0591076,109690.0,109680.0,0.21173994]
[1752088036691,0.06822411,109690.0,109680.0,0.21173994]
[1752088037124,0.0591076,109690.0,109680.0,0.22997372]
[1752088037338,0.38270604,109690.0,109680.0,0.22085687]
[1752088037549,0.0591076,109690.0,109680.0,0.54445573]
[1752088037688,0.06822395,109690.0,109680.0,0.54445573]
[1752088037902,0.38270604,109690.0,109680.0,0.20262293]
[1752088038103,0.39182264,109690.0,109680.0,0.21174036]
[1752088038304,0.38270604,109690.0,109680.0,0.22085737]
[1752088038522,0.38270604,109690.0,109680.0,0.21174036]
[1752088038709,0.40842264,109690.0,109680.0,0.20970036]
[1752088038933,0.39930604,109690.0,109680.0,0.20970036]
[1752088039130,0.39930604,109690.0,109680.0,0.21881737]
[1752088039359,0.39930604,109690.0,109680.0,0.2279343]
[1752088039730,0.04806511,109690.0,109680.0,0.21881687]
[1752088039899,0.03894868,109690.0,109680.0,0.22793372]
[1752088040103,0.02234868,109690.0,109680.0,0.21881687]
[1752088040302,0.02234868,109690.0,109680.0,0.22793372]
[1752088040971,0.02234868,109690.0,109680.0,0.22997372]
[1752088041210,0.11248488,109690.0,109680.0,0.22997372]
[1752088041568,0.12160123,109690.0,109680.0,0.22997372]
[1752088041769,0.11248488,109690.0,109680.0,0.28464482]
[1752088042020,0.13071765,109690.0,109680.0,0.25729403]
[1752088042190,0.62753168,109690.0,109680.0,0.25729444]
[1752088042393,0.47629966,109690.0,109680.0,0.27348872]
[1752088042805,0.65863168,109690.0,109680.0,0.24613718]
[1752088043000,0.65863168,109690.0,109680.0,0.25525444]
[1752088043237,0.34414967,109690.0,109680.0,0.25525444]
[1752088043551,0.47629966,109690.0,109680.0,0.2643717]
[1752088044080,0.47629966,109690.0,109680.0,0.25525452]
[1752088044260,0.47629966,109690.0,109680.0,0.27348896]
[1752088044479,0.48541626,109690.0,109680.0,0.28260606]
[1752088044672,0.48541626,109690.0,109680.0,0.27348896]
[1752088045324,0.65863227,109690.0,109680.0,0.26437178]
[1752088045727,0.64951609,109690.0,109680.0,0.26437178]
[1752088045901,0.64951609,109690.0,109680.0,0.27348896]
[1752088046759,0.64951609,109690.0,109680.0,0.26437178]
[1752088047112,0.33503408,109690.0,109680.0,0.27348896]
[1752088047318,0.64951609,109690.0,109680.0,0.27348896]
[1752088047679,0.64951609,109690.0,109680.0,0.26437178]
[1752088047792,0.33503408,109690.0,109680.0,0.26437178]
[1752088047994,0.64951609,109690.0,109680.0,0.26437178]
[1752088048299,0.64951609,109690.0,109680.0,0.25525452]
[1752088048491,0.64039983,109690.0,109680.0,0.25525452]
[1752088048687,0.32591782,109690.0,109680.0,0.25525452]
[1752088048947,0.64039983,109690.0,109680.0,0.26437178]
[1752088049480,0.64039983,109690.0,109680.0,0.25525452]
[1752088050109,0.63128332,109690.0,109680.0,0.24613718]
[1752088050318,0.62216672,109690.0,109680.0,0.51977975]
[1752088050444,0.30768471,109690.0,109680.0,0.52889718]
[1752088050654,0.39912164,109690.0,109680.0,0.3374311]
[1752088050877,0.71360365,109690.0,109680.0,0.3374311]
[1752088051898,0.62265671,109690.0,109680.0,0.51977975]
[1752088053289,0.3081747,109690.0,109680.0,0.51977975]
[1752088053494,0.62265671,109690.0,109680.0,0.51977975]
[1752088055170,0.62265671,109690.0,109680.0,0.52889718]
[1752088056045,0.62265671,109690.0,109680.0,0.51977975]
[1752088056251,0.62265671,109690.0,109680.0,0.53801452]
[1752088056450,0.63177322,109690.0,109680.0,0.53801452]
[1752088056605,0.11297545,109690.0,109680.0,0.55828871]
[1752088056802,0.42745746,109690.0,109680.0,0.55828871]
[1752088057008,0.10385869,109690.0,109680.0,0.56740573]
[1752088057202,0.44568958,109690.0,109680.0,0.5582883]
[1752088057479,0.13120757,109690.0,109680.0,0.5582883]
[1752088057631,0.61890559,109690.0,109680.0,0.54005435]
[1752088057837,0.61890559,109690.0,109680.0,0.54917153]
[1752088058041,0.61890559,109690.0,109680.0,0.54005435]
[1752088058619,0.66519173,109690.0,109680.0,0.54005435]
[1752088059498,0.66519173,109690.0,109680.0,0.53093718]
[1752088059636,0.66519173,109690.0,109680.0,0.54005452]
[1752088060226,0.31354018,109690.0,109680.0,0.5491717]
[1752088060447,0.43657357,109690.0,109680.0,0.5491717]
[1752088060650,0.44569017,109690.0,109680.0,0.5491717]
[1752088060848,0.62802219,109690.0,109680.0,0.5491717]
[1752088061048,0.62802219,109690.0,109680.0,0.5582888]
[1752088061272,0.44569017,109690.0,109680.0,0.5582888]
[1752088062268,0.43657357,109690.0,109680.0,0.56740565]
[1752088062469,0.43657357,109690.0,109680.0,0.5582888]
[1752088062692,0.43657357,109690.0,109680.0,0.56740573]
[1752088062942,0.43657357,109690.0,109680.0,0.56740581]
[1752088063111,0.43657357,109690.0,109680.0,0.56740531]
[1752088063872,0.61890559,109690.0,109680.0,0.54005427]
[1752088064233,0.12209156,109690.0,109680.0,0.54005427]
[1752088064391,0.43657357,109690.0,109680.0,0.5491712]
[1752088064599,0.43657357,109690.0,109680.0,0.55828805]
[1752088065317,0.44569017,109690.0,109680.0,0.54917128]
[1752088066292,0.44569017,109690.0,109680.0,0.54919128]
[1752088067026,0.44569008,109690.0,109680.0,0.54919128]
[1752088067158,0.45480668,109690.0,109680.0,0.54919128]
[1752088067370,0.6280226,109690.0,109680.0,0.54919137]
[1752088068934,0.61890625,109690.0,109680.0,0.53095709]
[1752088069098,0.71034318,109690.0,109680.0,0.54007435]
[1752088069341,0.71034318,109690.0,109680.0,0.54919153]
[1752088069901,0.61890625,109690.0,109680.0,0.54919153]
[1752088071492,0.61890566,109690.0,109680.0,0.54919153]
[1752088072201,0.43657306,109690.0,109680.0,0.55830854]
[1752088072402,0.44568957,109690.0,109680.0,0.55830854]
[1752088072605,0.44568957,109690.0,109680.0,0.55830863]
[1752088072784,0.43657306,109690.0,109680.0,0.55830863]
[1752088073029,0.44568957,109690.0,109680.0,0.55830863]
[1752088073407,0.44568957,109690.0,109680.0,0.56742564]
[1752088073408,0.44568949,109690.0,109680.0,0.56742564]
[1752088073803,0.14032399,109690.0,109680.0,0.55830863]
[1752088073953,0.09267268,109690.0,109680.0,0.91732716]
[1752088074193,0.09267268,109690.0,109680.0,0.60284515]
[1752088074357,0.09267268,109690.0,109680.0,0.64462955]
[1752088074358,0.00123575,109690.0,109680.0,0.64462955]
[1752088074563,0.00123575,109690.0,109680.0,1.27359357]
[1752088075016,0.00023575,109690.0,109680.0,1.27359357]
[1752088075228,0.00023575,109690.0,109680.0,1.27459357]
[1752088075843,0.036658,109710.0,109700.0,0.20054635]
[1752088076052,0.13021135,109710.0,109700.0,0.48258643]
[1752088076257,0.13021135,109710.0,109700.0,0.49170178]
[1752088077214,0.12409658,109710.0,109700.0,0.50081705]
[1752088077418,0.11498198,109710.0,109700.0,0.51199223]
[1752088077625,0.11698189,109710.0,109700.0,0.5666977]
[1752088077828,0.11698189,109710.0,109700.0,0.88117971]
[1752088078028,0.12609641,109710.0,109700.0,0.55758252]
[1752088078227,0.13521118,109710.0,109700.0,0.49376178]
[1752088078440,0.1352111,109710.0,109700.0,0.49376178]
[1752088078641,0.44969311,109710.0,109700.0,0.50287705]
[1752088079835,0.44969311,109710.0,109700.0,0.51199223]
[1752088079836,0.44057842,109710.0,109700.0,0.51199223]
[1752088079974,0.44057842,109710.0,109700.0,0.50287705]
[1752088080178,0.44057842,109710.0,109700.0,0.51199223]
[1752088080390,0.12609641,109710.0,109700.0,0.51199223]
[1752088080588,0.44969311,109710.0,109700.0,0.50287705]
[1752088081031,0.44057842,109710.0,109700.0,0.50287705]
[1752088081232,0.44969311,109710.0,109700.0,0.49376178]
[1752088081456,0.12609641,109710.0,109700.0,0.51199223]
[1752088081912,0.13521101,109710.0,109700.0,0.50287705]
[1752088082455,0.13521101,109710.0,109700.0,0.51199223]
[1752088082705,0.44057842,109710.0,109700.0,0.51199223]
[1752088083534,0.53201535,109710.0,109700.0,0.51199223]
[1752088083676,0.54113012,109710.0,109700.0,0.48464643]
[1752088083880,0.54113004,109710.0,109700.0,0.49170178]
[1752088084256,0.56614497,109710.0,109700.0,0.48258652]
[1752088084464,0.56614497,109710.0,109700.0,0.49170195]
[1752088084465,0.56614489,109710.0,109700.0,0.49170195]
[1752088084649,0.25874803,109710.0,109700.0,0.50993257]
[1752088084791,0.25874803,109710.0,109700.0,0.5008173]